Cogmind - Beta 16.1 @@@ ROGUE MODE // 2026.02.12 @ 15:20:11 Player: TheSkyeDoctor Result: Destroyed by D-53 Grenadier with Mini Grenade Launcher Performance ------------- Evolutions (0) 0 Regions Visited (4) 800 Robots Destroyed (15) 75 Value Destroyed (137) 137 Prototype IDs (24) 480 Alien Tech Used (0) 0 Bonus (300) 300 TOTAL SCORE: 1792 Bonus ------- Aligned with FarCom 300 Cogmind --------- Core Integrity 0/250 Matter 300/300 Energy 112/125 System Corruption 0% Temperature Cool (0) Movement Core (750) Ox14 Location -9/Mines Parts ------- > --- POWER (1) -------- Light Ion Engine > --- PROPULSION (2) --- (None) > --- UTILITY (2) ------ High-capacity Storage Unit > --- WEAPON (2) ------- (None) > --- INVENTORY (20) --- Light Angular Momentum Engine Flying Fortress v7 Scrap Suit Heat Sink Improved Heat Sink High-capacity Storage Unit Seismic Detector Improved Targeting Computer Shield Generator Beamcaster Light Assault Rifle Peak State ------------ > --- POWER ------------ Ion Engine > --- PROPULSION ------- Wheel Wheel > --- UTILITY ---------- High-capacity Storage Unit Experimental Sensor Array > --- WEAPON ----------- Beam Cannon Enhanced Flamer > --- INVENTORY -------- Wheel Wheel Flying Fortress v7 Scrap Suit Heat Sink High-capacity Storage Unit Seismic Detector Assault Rifle Light Assault Rifle [Rating: 21] Favorites ----------- Power Ion Engine Engine Ion Engine Propulsion Wheel Wheel Wheel Utility High-capacity Storage Unit Device Experimental Sensor Array Storage High-capacity Storage Unit Weapon Beam Cannon Energy Cannon Beam Cannon Ballistic Gun Assault Rifle Special Weapon Enhanced Flamer Build | -11 -10 -10 -10 -9 ------- Run | Yrd Mat Min Exi Min Slots Evolved . | . . . . . Power . | . . . . . Propulsion . | . . . . . Utility . | . . . . . Weapon . | . . . . . Parts Attached 14 | 7 1 3 . 3 Power 2 | 1 . . . 1 Engine 2 | 1 . . . 1 Core . | . . . . . Reactor . | . . . . . Propulsion 4 | 2 . . . 2 Treads . | . . . . . Leg . | . . . . . Wheel 4 | 2 . . . 2 Hover . | . . . . . Flight . | . . . . . Utility 4 | 2 1 1 . . Device 2 | 1 . 1 . . Storage 2 | 1 1 . . . Processor . | . . . . . Hackware . | . . . . . Protection . | . . . . . Artifact . | . . . . . Weapon 4 | 2 . 2 . . Energy Gun . | . . . . . Energy Cannon 1 | . . 1 . . Ballistic Gun 2 | 2 . . . . Ballistic Cannon . | . . . . . Launcher . | . . . . . Special Weapon 1 | . . 1 . . Impact Weapon . | . . . . . Slashing Weapon . | . . . . . Piercing Weapon . | . . . . . Special Melee Weapon . | . . . . . Unidentified Prototypes 1 | . . 1 . . Parts Lost 9 | . . . . 9 Power 1 | . . . . 1 Propulsion 4 | . . . . 4 Utility 1 | . . . . 1 Weapon 3 | . . . . 3 Highest Loss Streak 7 | . . . . 7 To Critical Strikes . | . . . . . Average Backups 6 | 1 2 5 8 10 Power . | . . . . . Propulsion 2 | . 2 2 2 2 Utility 2 | . . 2 4 5 Weapon 1 | . . 1 2 1 Tool/Special . | . . . . . Unused Backups 9 | 1 . . . 8 Power 1 | . . . . 1 Propulsion 2 | 1 . . . 1 Utility 5 | . . . . 5 Weapon 1 | . . . . 1 Tool/Special . | . . . . . Average Slot Usage (%) 98 | . 100 100 100 92 Engine 12 | . 14 14 14 7 Wheel 27 | . 28 28 28 27 Device 14 | . 14 14 14 14 Storage 14 | . 14 14 14 14 Energy Cannon 11 | . . 9 14 14 Ballistic Gun 6 | . 28 7 . 7 Special Weapon 10 | . . 11 14 6 Peak Build Rating 21 | 7 7 18 21 21 Average Rating 14 | 5 7 11 19 19 On Entrance 10 | . 7 7 18 21 Avg Prop Armor Cover (%) . | . . . . . Naked Turns . | . . . . . Heaviest Build 51 | 14 49 51 51 51 Greatest Support 20 | 20 20 20 20 20 Greatest Overweight (x) 2 | 1 2 2 2 2 Average Overweight (x) 1 | . . 2 2 2 Largest Inventory Capacity 20 | 8 20 20 20 20 Average Capacity 18 | 7 13 20 20 20 Most Carried 18 | 4 4 9 13 18 Average Carried 8 | 1 2 5 10 14 Final Capacity 20 | 8 20 20 20 20 Final Carried 15 | 2 3 9 13 15 Class Distribution -------------------- 78% | Mutant 21% | Skirmisher Dominant Class ---------------- Mutant | -10/Materials Mutant | -10/Mines Mutant | -10/Exiles Skirmisher | -9/Mines Resources | -11 -10 -10 -10 -9 ----------- Run | Yrd Mat Min Exi Min Matter Collected 370 | 310 . 46 . 14 Remotely . | . . . . . Salvage Created 271 | 136 . 80 . 55 Parts 25 | 11 . 6 . 8 Haulers Intercepted . | . . . . . Recyclers Shooed . | . . . . . Parts Field Recycled . | . . . . . Retrieved Matter . | . . . . . Parts Self-Destructed . | . . . . . Prevented . | . . . . . Parts Restored . | . . . . . Kills | -11 -10 -10 -10 -9 ------- Run | Yrd Mat Min Exi Min Combat Hostiles Destroyed 11 | . . 7 . 4 Guns 2 | . . . . 2 Cannons 9 | . . 7 . 2 Classes Destroyed 3 | 2 . 1 . . Tunneler 3 | 3 . . . . Recycler 1 | 1 . . . . Swarmer 11 | . . 7 . 4 Best Kill Streak 3 | 3 . 3 . 2 Combat Bots Only 3 | . . 3 . 2 Max Kills in Single Turn 1 | 1 . 1 . 1 Gunslinging . | . . . . . Exploded . | . . . . . Melee . | . . . . . Uniques/NPCs Destroyed . | . . . . . Combat | -11 -10 -10 -10 -9 -------- Run | Yrd Mat Min Exi Min Hostile Shots Fired 71 | . . 30 . 41 Missed 19 | . . 10 . 9 Hits 52 | . . 20 . 32 Projectile 52 | . . 20 . 32 AOE 9 | . . . . 9 Damage Taken 747 | . . 157 . 590 Core 259 | . . 24 . 235 Absorbed by Shields . | . . . . . Core Remaining (%) 100 | 100 . . . . Volleys Fired 42 | 10 . 20 . 12 Largest 2 | 2 . 2 . 2 Hottest 140 | 40 . 140 . 140 Shots Fired 66 | 20 . 25 . 21 Gun 25 | 20 . 2 . 3 Cannon 30 | . . 18 . 12 Launcher . | . . . . . Special 11 | . . 5 . 6 Kinetic 25 | 20 . 2 . 3 Thermal 41 | . . 23 . 18 Explosive . | . . . . . Electromagnetic . | . . . . . Robot Hit Streak 5 | 5 . 4 . 2 Robot Miss Streak 5 | 3 . 3 . 5 Penetration Max . | . . . . . Secondary Targets . | . . . . . Shots Hit Robots 33 | 12 . 14 . 7 Core Hits 17 | 6 . 7 . 4 Critical Kills . | . . . . . Critical Parts Destroyed . | . . . . . Critical Strikes 1 | . . . . 1 Burn 1 | . . . . 1 Melee Attacks . | . . . . . Impact . | . . . . . Slashing . | . . . . . Piercing . | . . . . . Sneak Attacks . | . . . . . Combat Hostiles . | . . . . . Follow-up Attacks . | . . . . . Damage Inflicted 457 | 141 . 213 . 103 Guns 168 | 141 . . . 27 Cannons 211 | . . 158 . 53 Explosions . | . . . . . Melee . | . . . . . Ramming . | . . . . . Kinetic 168 | 141 . . . 27 Thermal 289 | . . 213 . 76 Explosive . | . . . . . Electromagnetic . | . . . . . Impact . | . . . . . Slashing . | . . . . . Piercing . | . . . . . Highest Corruption . | . . . . . Average Corruption . | . . . . . Corruption Purged . | . . . . . Corruption Blocked . | . . . . . Overload Shots . | . . . . . Overflow Damage . | . . . . . Projectiles . | . . . . . Explosions . | . . . . . Melee . | . . . . . Knockbacks . | . . . . . Impact . | . . . . . Kinetic . | . . . . . Secondary . | . . . . . Self-Inflicted Damage . | . . . . . Shots . | . . . . . Rammed . | . . . . . Targets Rammed . | . . . . . Kicked . | . . . . . Crushed . | . . . . . Highest Temperature 388 | . . 274 . 388 Average Temperature 161 | . . 117 . 220 Received Heat Transfer . | . . . . . Effects 1 | . . . . 1 Shutdowns 1 | . . . . 1 Siege Activations . | . . . . . Martial Activations . | . . . . . Shielding Activations . | . . . . . Robots Disrupted . | . . . . . Combat Hostiles . | . . . . . Robots Corrupted . | . . . . . Combat Hostiles . | . . . . . Parts Fried . | . . . . . Impact Corruptions . | . . . . . Robots Melted . | . . . . . Combat Hostiles . | . . . . . Parts Melted 3 | . . 3 . . Heat Transferred 1164 | . . 733 . 431 Parts Sabotaged . | . . . . . Parts Stolen . | . . . . . Parts Stripped . | . . . . . Power Chain Reactions . | . . . . . Alert | -11 -10 -10 -10 -9 ------- Run | Yrd Mat Min Exi Min Maximum Alert Level . | . . . . . Low Security (%) 100 | 100 100 100 . 100 Level 1 . | . . . . . Level 2 . | . . . . . Level 3 . | . . . . . Level 4 . | . . . . . Level 5 . | . . . . . High Security . | . . . . . Max Security . | . . . . . Peak Influence 90 | 5 . 90 . 75 Initial . | . . . . . Average 24 | 1 . 27 . 31 Influence Increases 355 | 20 . 200 . 135 Destroy 0b10 Robot/C 220 | . . 140 . 80 Destroy 0b10 Robot/NC 20 | 20 . . . . Destroy Leader 40 | . . 30 . 10 Lose Combat Pursuer 75 | . . 30 . 45 Influence Decreases 355 | 20 . 162 38 135 Entered New Map 38 | . . . 38 . Time Decay 282 | 20 . 162 . 100 Lost Part 35 | . . . . 35 Squads Dispatched . | . . . . . Investigation . | . . . . . Extermination . | . . . . . Reinforcement . | . . . . . Assault . | . . . . . Garrison . | . . . . . Intercept . | . . . . . Searches Triggered . | . . . . . Construction Impeded . | . . . . . Haulers Reinforced . | . . . . . Active Scanning Responses . | . . . . . Cargo Convoy Interrupts . | . . . . . Stealth | -11 -10 -10 -10 -9 --------- Run | Yrd Mat Min Exi Min Distress Signals . | . . . . . Communications Jammed . | . . . . . Distress Signals . | . . . . . Times Spotted 18 | . 1 8 . 9 Peak Tracking Total 4 | . 1 3 . 4 Tactical Retreats 3 | . . 1 . 2 Traps | -11 -10 -10 -10 -9 ------- Run | Yrd Mat Min Exi Min Traps Triggered . | . . . . . Indirectly . | . . . . . Trap Hack Attempts . | . . . . . Triggered . | . . . . . Disarmed . | . . . . . Reprogrammed . | . . . . . Reused . | . . . . . Traps Extracted . | . . . . . Installed . | . . . . . Triggered . | . . . . . Machines | -11 -10 -10 -10 -9 ---------- Run | Yrd Mat Min Exi Min Machines Disabled . | . . . . . Max in Single Turn . | . . . . . Machines Repaired . | . . . . . Machines Dismantled . | . . . . . Machines Sabotaged . | . . . . . Overloaded Fab Kills . | . . . . . Hacking | -11 -10 -10 -10 -9 --------- Run | Yrd Mat Min Exi Min Machines Accessed 3 | . 2 . 1 . Terminals 2 | . 2 . . . Fabricators . | . . . . . Repair Stations . | . . . . . Recycling Units . | . . . . . Scanalyzers . | . . . . . Garrison Access . | . . . . . Total Hacks 5 | . 4 . 1 . Successful 1 | . . . 1 . Failed 4 | . 4 . . . Catastrophic 3 | . 3 . . . Database Lockouts . | . . . . . Manual 4 | . 3 . 1 . Terminals 4 | . 4 . . . Fabricators . | . . . . . Repair Stations . | . . . . . Recycling Units . | . . . . . Scanalyzers . | . . . . . Garrison Access . | . . . . . Terminal Hacks 1 | . . . 1 . Proto ID Catalog 1 | . . . 1 . Fabricator Hacks . | . . . . . Repair Station Hacks . | . . . . . Recycling Unit Hacks . | . . . . . Scanalyzer . | . . . . . Garrison Access Hacks . | . . . . . Unauthorized Hacks . | . . . . . Terminals . | . . . . . Fabricators . | . . . . . Repair Stations . | . . . . . Recycling Units . | . . . . . Scanalyzers . | . . . . . Garrison Access . | . . . . . Data Cores Recovered . | . . . . . Used . | . . . . . Hacking Detections 2 | . 2 . . . Full Trace Events . | . . . . . Feedback Events . | . . . . . Feedback Blocked . | . . . . . Robot Schematics Acquired . | . . . . . Robots Built . | . . . . . Authchips . | . . . . . Time . | . . . . . Total Robot Build Rating . | . . . . . Part Schematics Acquired . | . . . . . Parts Built . | . . . . . Authchips . | . . . . . Time . | . . . . . Total Part Build Rating . | . . . . . Part Studies Acquired . | . . . . . Parts Repaired . | . . . . . Time . | . . . . . Parts Recycled . | . . . . . Recycled Matter . | . . . . . Retrieved Matter . | . . . . . Retrieved Components . | . . . . . Parts Scanalyzed . | . . . . . Part Schematics Acquired . | . . . . . Parts Damaged . | . . . . . Bothacking | -11 -10 -10 -10 -9 ------------ Run | Yrd Mat Min Exi Min Used RIF Installer . | . . . . . Robots Hacked . | . . . . . Non-combat . | . . . . . Combat . | . . . . . Robot Hacks Applied . | . . . . . Relay Couplers Released . | . . . . . Fabnet Peak Effective % . | . . . . . Robots Rewired . | . . . . . Allies Hacked . | . . . . . Hacks Repelled . | . . . . . Allies | -11 -10 -10 -10 -9 -------- Run | Yrd Mat Min Exi Min Total Allies . | . . . . . Largest Group . | . . . . . Highest-Rated Group . | . . . . . Highest-Rated Ally . | . . . . . Total Orders . | . . . . . Ally Attacks . | . . . . . Total Damage . | . . . . . Kills . | . . . . . Allies Corrupted . | . . . . . Allies Melted . | . . . . . Intel | -11 -10 -10 -10 -9 ------- Run | Yrd Mat Min Exi Min Active Infowar (turns) 1167 | 51 50 556 253 257 Sensors 722 | . . 212 253 257 Seismic 445 | 51 50 344 . . Robot Analysis Total . | . . . . . Derelict Logs Recovered 1 | . . 1 . . Drone Launches . | . . . . . Drone Recoveries . | . . . . . Exploration | -11 -10 -10 -10 -9 ------------- Run | Yrd Mat Min Exi Min Turns Passed 1237 | 116 50 556 253 262 Spaces Moved 991 | 89 50 437 230 185 Core 12 | 12 . . . . Treads . | . . . . . Legs . | . . . . . Wheels 979 | 77 50 437 230 185 Hover . | . . . . . Flight . | . . . . . Fastest Speed 50 | 50 80 110 110 110 Average Speed 106 | 79 92 110 110 110 Slowest Speed 110 | 95 110 110 110 110 Overloaded Moves . | . . . . . Propulsion Burnouts . | . . . . . Robots Hopped . | . . . . . Potential Cave-ins . | . . . . . Cave-ins Triggered . | . . . . . Exploration Rate (%) 37 | 3 12 88 42 40 Regions Visited 4 Branch Regions 3 Pre-discovered Areas 1 | . . 1 . . Known Exits Taken . | . . . . . Unknown Exits Taken 4 | 1 1 1 1 . Scrap Searched 2 | . . 1 . 1 Spaces Dug . | . . . . . Terrain Destroyed . | . . . . . Melee . | . . . . . Projectile . | . . . . . AOE . | . . . . . Terrain Rammed . | . . . . . Walls Destroyed . | . . . . . Machines Disabled . | . . . . . Actions | -11 -10 -10 -10 -9 --------- Run | Yrd Mat Min Exi Min Total 1098 | 116 53 482 230 217 Wait 27 | . . 17 . 10 Move 987 | 88 49 436 229 185 Hop . | . . . . . Pick Up 24 | 10 2 5 1 6 Fast Attach . | . . . . . Attach 12 | 7 . 1 . 4 Detach 1 | . . 1 . . Swap 3 | . 1 2 . . Drop 2 | 1 1 . . . Fire 42 | 10 . 20 . 12 Melee . | . . . . . Ram . | . . . . . Kick . | . . . . . Crush . | . . . . . Escape Stasis . | . . . . . Rewire . | . . . . . Trap . | . . . . . Miscellaneous . | . . . . . Route ------- -11/Scrapyard -10/Materials -10/Mines (discovered 2 exits: [*Mat] / *Exi) -10/Exiles -9/Mines History --------- Turn | Location | Event 10 | -11/Scrapyard | Discovered new exit (range 15) 117 | -11/Scrapyard | Entered Materials 152 | -10/Materials | Discovered new exit (range 13) 167 | -10/Materials | Entered Mines 176 | -10/Mines | Discovered new exit (range 8) 181 | -10/Mines | Learned location of Zion (-6) 270 | -10/Mines | A weapon hastily lodged in a ceiling crevice suddenly fell to the ground 313 | -10/Mines | Build established: Mutant 507 | -10/Mines | Found a damaged Exp. Sensor Array with a note attached 510 | -10/Mines | Found Prototype Device 511 | -10/Mines | Identified Exp. Sensor Array 708 | -10/Mines | Found a Scrap Suit stashed away for nefarious purposes 711 | -10/Mines | Found Scrap Suit 718 | -10/Mines | Deemed a non-threat by the Exiles lab entrance 718 | -10/Mines | Discovered new exit (range 5) 723 | -10/Mines | Entered Exiles 752 | -10/Exiles | Discovered new exit (range 15) 766 | -10/Exiles | Met 8R-AWN 786 | -10/Exiles | Met EX-HEX 817 | -10/Exiles | Met EX-BIN 832 | -10/Exiles | Aligned with FarCom system 833 | -10/Exiles | Given EX-Vault access code 859 | -10/Exiles | Opened EX-Vault 868 | -10/Exiles | Found Flying Fortress v7 889 | -10/Exiles | Warned to stay clear of 0b10 Research branches 976 | -10/Exiles | Left Exiles lab with Flying Fortress v7 976 | -10/Exiles | Entered Mines 1128 | -9/Mines | Joined a pair of Derelicts in attacking an 0b10 outpost 1193 | -9/Mines | Assembled infested the area 1198 | -9/Mines | Assisted by a Guerilla fighting off Assembled 1232 | -9/Mines | Core integrity fell below 50% 1236 | -9/Mines | Core integrity fell below 20% 1238 | -9/Mines | Destroyed by D-53 Grenadier with Mini Grenade Launcher Last Messages --------------- outclassed. Let's just hope they don't decide to send in Demolishers again..." ALERT: Infestation in the mines, dispatching Demolisher response squad. A derelict emerges from the shadows: "You need to get out of here! I've been tracking a group of Assembled to figure out where they're coming from, and they're closing on this area, come on!" ED-KI2(h): "I'll hold them off! Go on ahead or try to find another way!" C-45 Heavy ARC bursts open, deploying its payload. D-53 Grenadier unfolds itself. Wheel destroyed. Beam Cannon destroyed. Exp. Sensor Array destroyed. Wheel destroyed. Assault Rifle destroyed. Wheel destroyed. Map ----- +----------------------------------------------------+ | ???????????##### #??????????????????# #????????? | | ???????????????# ####???????????????# #????????? | | ???????????????# # ??????????????? #????????? | | ????????##?????# ??????????????? #????????? | | ??? ## ???## ###### ??? #????????? | | ?? ### ?? ????????? | | ???????# % ? ????????? | | ???????### #####"####???? ##????????? | | ?????????## ?????????????# ??????????? | | ??????????## #????????????# ??????????? | | ???????????##### ##???????????## ??????????? | | ???????????????### #???????####?## ??????????? | | ?????????????????## ##?????# ##?###??????????? | | ??????????????????## ###### ##?????????????? | | ???????????????????## #?????????????? | | ????????????????????# #?????????????? | | ????????????????????## d #?????????????? | | ?????????????????###?# d ##?????????????? | | ???????????*%= ### ## ######??????????????? | | ?????????? #??????????????????? | | ?????????????? #??????????????????? | | ????????????????????## #??????????????????? | | ????????????????????# #??????????????????? | | ????????????????????# #??????????????????? | | ????????????????????# #??????????????????? | | ????????????????????# @ #??????????????????? | | ??????????????a ##??????????????????? | | ????????????# ?????????????????? | | ???????????# ### ## #????????????????? | | ??????????? %* ???#### ##??#????????????????? | | ???????????? ???????# ###????????????????????? | | ???????????? ????????# #??????????????????????? | | ?????????????##?????????# ??????????????????????? | | ????????????????????????# #??????????????????????? | | ????????????????????????? ???????????????????????? | | ????????????????????????? ???????????????????????? | | ????????????????????????? ???????????????????????? | | ????????????????????????? ???????????????????????? | | ?????????????????????????#???????????????????????? | | ?????????????????????????????????????????????????? | | ?????????????????????????????????????????????????? | | ?????????????????????????????????????????????????? | | ?????????????????????????????????????????????????? | | ?????????????????????????????????????????????????? | | ?????????????????????????????????????????????????? | | | | | | | | | | | +----------------------------------------------------+ Best States ------------- Heat Dissipation 25 Energy Generation 10 Energy Capacity 250 Matter Stores 300 Matter Capacity 300 Sight Range 16 Robot Scan Range 20 Terrain Scan Density 10 Evasion (%) 50 Item Schematics ----------------- None Robot Schematics ------------------ None Fabricated ------------ Nothing Repaired ---------- Nothing Studied --------- None Alien Tech Used ----------------- None Achievements -------------- None Challenges ------------ None Game ------ Seed PulseSwordMicrothruster Manual? 0 Play Time 00:12:12 Cumulative 18.0 hours Start 2026.02.12 @ 15:09:35 End 2026.02.12 @ 15:20:11 Sessions 1 Manual Loads 0 Difficulty Rogue Special Mode None Game No. 44 Rogue 44 Adventurer 0 Explorer 0 Win Type - Total 0 Types 0/0/0/0/0/0/0/0/0/0 Lore% 17 Gallery% 23 Achievement% 19 Wizard Run 0 Options --------- Layout 1 ASCII 0 Keyboard 0 Movement Mouse Keybinds 0 Fullscreen 1 Font 24/Smallcaps Map View 50x35 Zoom Use 0% Tactical HUD 0 Map Filters NONE Filters NONE Steam 1 RUN: 184a2eb0-7cde-4062-a558-93ed4393f0c7